bitfinex/quotes_BTCUSD_20250508
["timestamp","ask_amount","ask_price","bid_price","bid_amount"]
[1746711261599,0.003,99495.0,99494.0,3.148127]
[1746711261772,0.003,99495.0,99494.0,2.808127]
[1746711262103,0.004,99495.0,99494.0,2.808127]
[1746711262601,0.004,99495.0,99494.0,0.0307]
[1746711262834,0.003,99495.0,99494.0,0.03270981]
[1746711263062,4e-05,99512.0,99511.0,0.2009828]
[1746711263244,4e-05,99512.0,99511.0,6.30174932]
[1746711263513,4e-05,99512.0,99511.0,6.2997398]
[1746711263727,0.01004601,99542.0,99531.0,0.20094241]
[1746711263934,0.01004661,99536.0,99532.0,2.616377]
[1746711264149,0.21097932,99536.0,99531.0,0.04106412]
[1746711264357,0.00049764,99533.0,99532.0,6.084404]
[1746711264549,0.00049764,99533.0,99532.0,5.122184]
[1746711264782,0.00049764,99533.0,99532.0,4.678772]
[1746711264983,0.00049764,99533.0,99532.0,2.771377]
[1746711265333,0.00095191,99533.0,99532.0,2.616535]
[1746711265538,0.00095191,99533.0,99532.0,1.9624]
[1746711265897,0.00095191,99533.0,99532.0,1.3544]
[1746711266282,0.00095191,99533.0,99532.0,1.2953]
[1746711266830,0.00095191,99533.0,99532.0,1.2368]
[1746711267041,0.00095191,99533.0,99532.0,1.0081]
[1746711267247,0.00095191,99533.0,99532.0,0.9816]
[1746711269093,0.00095191,99533.0,99532.0,4.772222]
[1746711269290,0.00095191,99533.0,99532.0,4.788222]
[1746711269491,0.00095191,99533.0,99532.0,4.692023]
[1746711269738,0.00095191,99533.0,99532.0,3.95603]
[1746711270118,0.00095191,99533.0,99532.0,3.17778]
[1746711270320,0.00095191,99533.0,99532.0,2.77018]
[1746711273268,0.20189029,99533.0,99532.0,1.506621]
[1746711273490,0.00095191,99533.0,99532.0,1.7240614]
[1746711274347,0.30255721,99533.0,99532.0,0.975606]
[1746711274599,0.30255721,99533.0,99531.0,0.04000649]
[1746711274760,0.01004722,99530.0,99525.0,0.01004772]
[1746711274960,0.01004742,99528.0,99526.0,0.34]
[1746711275183,0.01099882,99533.0,99527.0,2.028158]
[1746711275403,0.00095191,99533.0,99532.0,0.34]
[1746711275577,0.00095191,99533.0,99532.0,5.591235]
[1746711275761,0.00095191,99533.0,99532.0,2.103765]
[1746711276167,0.00095191,99533.0,99532.0,2.120265]
[1746711276621,0.00095191,99533.0,99532.0,2.135765]
[1746711279798,0.00095191,99533.0,99532.0,2.103765]
[1746711281652,0.00095191,99533.0,99532.0,1.8906]
[1746711281894,0.00095191,99533.0,99532.0,1.7194]
[1746711282831,0.10261883,99533.0,99532.0,0.3014]
[1746711283071,0.01004843,99518.0,99513.0,0.20097844]
[1746711283337,0.01004802,99522.0,99518.0,0.35004843]
[1746711283588,0.21100894,99522.0,99519.0,2.276535]
[1746711283836,0.01004802,99522.0,99520.0,1.4608]
[1746711284078,0.01004802,99522.0,99521.0,2.616535]
[1746711284633,0.01004802,99522.0,99521.0,1.5614]
[1746711285093,0.01004802,99522.0,99521.0,0.5612]
[1746711285338,0.01004802,99522.0,99521.0,0.5632]
[1746711285580,0.11071494,99522.0,99521.0,0.342]
[1746711285817,0.12691494,99522.0,99521.0,0.342]
[1746711286063,0.14602696,99522.0,99521.0,0.002]
[1746711286307,0.16056815,99522.0,99521.0,0.002]
[1746711286786,0.16056815,99522.0,99521.0,0.004]
[1746711287183,0.01004994,99503.0,99500.0,0.40650427]
[1746711287379,0.10066692,99502.0,99501.0,0.34]
[1746711287746,0.10066692,99502.0,99501.0,2.616535]
[1746711288371,0.21102939,99513.0,99510.0,0.01004924]
[1746711288583,0.10066692,99512.0,99511.0,2.4775178]
[1746711288999,0.21101756,99518.0,99511.0,2.4775178]
[1746711289000,0.01004883,99514.0,99511.0,2.276535]
[1746711289201,0.21102461,99515.0,99511.0,0.21102995]
[1746711289470,0.21102707,99514.0,99512.0,2.276535]
[1746711289632,0.21102707,99514.0,99510.0,2.28658424]
[1746711289835,0.01004873,99515.0,99512.0,0.20097994]
[1746711290192,0.21102429,99515.0,99513.0,2.276535]
[1746711290394,0.11071545,99517.0,99513.0,0.34]
[1746711290509,0.21102189,99516.0,99514.0,2.276535]
[1746711290715,0.21102148,99516.0,99514.0,2.276535]
[1746711291742,0.21202148,99516.0,99514.0,2.276535]
[1746711291954,0.21102421,99515.0,99512.0,0.01004903]
[1746711292221,0.31169303,99514.0,99513.0,0.5393]
[1746711292436,0.01004934,99509.0,99506.0,0.20099168]
[1746711292646,0.01004924,99510.0,99507.0,2.276535]
[1746711292849,0.001,99516.0,99512.0,0.20098061]
[1746711293050,0.001,99516.0,99514.0,0.20097674]
[1746711293269,0.002,99516.0,99515.0,5.393011]
[1746711293456,0.001,99516.0,99515.0,5.393011]
[1746711293888,0.001,99516.0,99515.0,5.270323]
[1746711294166,0.001,99516.0,99515.0,4.761567]
[1746711294369,0.001,99516.0,99515.0,4.793667]
[1746711294999,0.001,99522.0,99521.0,0.57306261]
[1746711295138,0.00113713,99522.0,99521.0,6.64021961]
[1746711295789,0.00113713,99522.0,99521.0,7.04021961]
[1746711296007,0.00113713,99522.0,99521.0,6.58302961]
[1746711296235,0.00113713,99522.0,99521.0,6.39600661]
[1746711296466,0.00113713,99522.0,99521.0,5.69215761]
[1746711297390,0.00113713,99522.0,99521.0,5.69415761]
[1746711297613,0.00213713,99522.0,99521.0,5.69415761]
[1746711298373,0.00213713,99522.0,99521.0,5.71015761]
[1746711298967,0.00213713,99522.0,99521.0,5.69415761]
[1746711299366,0.00213713,99522.0,99521.0,5.67805761]
[1746711299515,0.00213713,99522.0,99521.0,4.91283561]
[1746711299726,0.0025914,99522.0,99521.0,4.27449]
[1746711299927,0.0025914,99522.0,99521.0,3.165561]
[1746711300167,0.0025914,99522.0,99521.0,0.3778]
[1746711300368,0.11905832,99522.0,99521.0,0.004]
[1746711300567,0.13747035,99522.0,99521.0,0.004]
[1746711300981,0.13747035,99522.0,99521.0,0.002]
[1746711301185,0.20097044,99518.0,99514.0,0.01004883]
[1746711301346,0.01004843,99518.0,99515.0,4.898222]
[1746711301548,0.0025914,99522.0,99517.0,0.01004853]
[1746711301770,0.01263942,99522.0,99519.0,0.34]
[1746711301970,0.20096261,99521.0,99520.0,3.32544]
[1746711302187,0.20355313,99522.0,99521.0,0.34]
[1746711302386,0.0025914,99522.0,99521.0,3.361639]
[1746711302579,0.0025914,99522.0,99521.0,5.34039661]
[1746711302818,0.0025914,99522.0,99521.0,6.60811961]
[1746711304333,0.0025914,99522.0,99521.0,6.61011961]
[1746711304976,0.0025914,99522.0,99521.0,6.409157]
[1746711305186,0.0025914,99522.0,99521.0,5.94281]
[1746711305479,0.0025914,99522.0,99521.0,5.63775104]
[1746711305679,0.31946464,99522.0,99521.0,0.004]
[1746711305887,0.33641891,99522.0,99521.0,0.004]
[1746711306207,0.35095976,99522.0,99521.0,0.004]
[1746711306636,0.35095976,99522.0,99521.0,0.002]
[1746711306917,0.35095976,99522.0,99521.0,0.00354573]
[1746711307768,0.35095976,99522.0,99521.0,0.002]
[1746711308180,0.35095976,99522.0,99521.0,0.003]
[1746711308530,0.35095976,99522.0,99521.0,0.002]
[1746711308914,0.35095976,99522.0,99521.0,0.005]
[1746711310372,0.33641891,99522.0,99521.0,0.005]
[1746711310699,0.30421891,99522.0,99521.0,0.005]
[1746711311120,0.31981891,99522.0,99521.0,0.005]
[1746711311534,0.30421891,99522.0,99521.0,0.005]
[1746711311735,0.0025914,99522.0,99521.0,0.528023]
[1746711311970,0.0025914,99522.0,99521.0,2.474849]
[1746711312146,0.0025914,99522.0,99521.0,0.650705]
[1746711312356,0.0025914,99522.0,99521.0,0.901098]
[1746711313706,0.0025914,99522.0,99521.0,0.3759]
[1746711313897,0.0025914,99522.0,99521.0,6.443057]
[1746711314093,0.0025914,99522.0,99521.0,6.54372392]
[1746711314253,0.0025914,99522.0,99521.0,6.95177092]
[1746711314690,0.0035914,99522.0,99521.0,6.94877092]
[1746711315456,0.00058573,99533.0,99532.0,0.34]
[1746711315663,0.00058573,99533.0,99532.0,6.438657]
[1746711316204,0.20152411,99533.0,99532.0,5.656975]
[1746711316405,0.00058573,99533.0,99532.0,5.351343]
[1746711316785,0.00058573,99533.0,99532.0,5.366543]
[1746711317193,0.00058573,99533.0,99532.0,5.369543]
[1746711317798,0.00058573,99533.0,99532.0,5.78001639]
[1746711318915,0.00058573,99533.0,99532.0,5.79591639]
[1746711319818,0.002,99545.0,99544.0,0.54091617]
[1746711320035,0.002,99545.0,99544.0,0.57291617]
[1746711320247,0.002,99545.0,99544.0,6.64007317]
[1746711321077,0.002,99545.0,99544.0,6.62467317]
[1746711321279,0.002,99545.0,99544.0,7.02667317]
[1746711321525,0.002,99545.0,99544.0,7.04267317]
[1746711322086,0.00024037,99550.0,99549.0,0.54090608]
[1746711322285,4e-05,99560.0,99559.0,0.5408859]
[1746711322534,0.0001771,99560.0,99559.0,0.67265282]
[1746711322707,0.0001771,99560.0,99559.0,6.73980982]
[1746711323041,0.01004227,99579.0,99569.0,0.54086573]
[1746711323256,4e-05,99580.0,99569.0,6.62372273]
[1746711323507,0.07711941,99595.0,99594.0,0.57191531]
[1746711323953,0.00213708,99595.0,99594.0,4.092547]
[1746711324184,0.00213708,99595.0,99594.0,6.61536151]
[1746711324427,0.00213708,99595.0,99594.0,3.4287892]
[1746711324642,0.20295037,99595.0,99594.0,2.6239242]
[1746711324863,0.31931729,99595.0,99594.0,0.0073892]
[1746711325368,0.31931729,99595.0,99581.0,0.35205026]
[1746711325369,0.21087598,99585.0,99581.0,0.35205026]
[1746711325564,0.01004177,99584.0,99582.0,2.500641]
[1746711325805,0.01004247,99577.0,99572.0,0.01004298]
[1746711325979,0.01004278,99574.0,99572.0,3.028302]
[1746711326133,0.21089867,99574.0,99573.0,2.558963]
[1746711326335,0.01004258,99576.0,99574.0,0.34]
[1746711326570,0.01004258,99576.0,99570.0,0.21090634]
[1746711326571,0.20086684,99569.0,99567.0,0.34]
[1746711326730,0.20086684,99569.0,99566.0,0.04136252]
[1746711326731,0.20086774,99568.0,99566.0,0.04136252]
[1746711326928,0.10066692,99575.0,99572.0,0.01004298]
[1746711327136,0.21089049,99578.0,99572.0,0.21090169]
[1746711327333,0.21089028,99578.0,99574.0,0.20085395]
[1746711327535,0.21089541,99576.0,99575.0,2.276535]
[1746711327739,0.21089419,99576.0,99575.0,2.276535]
[1746711327941,0.01004247,99577.0,99573.0,2.276535]
[1746711328150,0.20084978,99577.0,99573.0,2.28657788]
[1746711328352,0.20085312,99576.0,99574.0,1.2977]
[1746711328603,0.01004258,99576.0,99575.0,2.276535]
[1746711328807,0.01004247,99577.0,99572.0,0.01004298]
[1746711329014,0.01004116,99590.0,99580.0,0.01004217]
[1746711329212,0.10066692,99589.0,99587.0,0.01004147]
[1746711329406,0.10066692,99589.0,99588.0,2.276535]
[1746711329563,0.10066692,99589.0,99587.0,0.34]
[1746711329768,0.30149336,99589.0,99588.0,2.276535]
[1746711329965,0.01004116,99590.0,99588.0,2.276535]
[1746711330212,0.00213708,99595.0,99590.0,0.01004116]
[1746711330416,0.00213708,99595.0,99592.0,0.2108594]
[1746711330635,0.00213708,99595.0,99591.0,2.276535]
[1746711330636,0.01004076,99594.0,99593.0,2.276535]
[1746711330805,0.01217774,99595.0,99592.0,2.276535]
[1746711331015,0.21299208,99595.0,99592.0,2.276535]
[1746711331229,0.01004086,99593.0,99591.0,2.276535]
[1746711331441,0.01004086,99593.0,99592.0,0.11619971]
[1746711331442,0.21085991,99593.0,99592.0,0.11619971]
[1746711331647,0.21085991,99593.0,99592.0,0.01239971]
[1746711331839,0.21085991,99593.0,99592.0,0.001]
[1746711332037,0.00213708,99595.0,99592.0,0.00537112]
[1746711332391,0.00213708,99595.0,99594.0,0.54081531]
[1746711332517,0.00213708,99595.0,99594.0,5.84897031]
[1746711332722,0.00213708,99595.0,99594.0,5.85333943]
[1746711332923,0.00213708,99595.0,99594.0,5.75787943]
[1746711334341,0.00213708,99595.0,99594.0,5.77367943]
[1746711334796,0.00213708,99595.0,99594.0,5.78977943]
[1746711335348,0.00213708,99595.0,99594.0,6.18977943]
[1746711335551,0.00213708,99595.0,99594.0,5.64148312]
[1746711335940,0.00213708,99595.0,99594.0,1.24029212]
[1746711336212,0.20295037,99595.0,99594.0,1.24029212]
[1746711336623,0.00213708,99595.0,99594.0,1.44110743]
[1746711337055,0.00213708,99595.0,99594.0,1.44010743]
[1746711337260,0.00213708,99595.0,99594.0,1.44110743]
[1746711337839,0.00213708,99595.0,99594.0,1.44010743]
[1746711338037,0.00213708,99595.0,99594.0,1.44110743]
[1746711338733,0.00213708,99595.0,99594.0,1.45650743]
[1746711339102,0.00213708,99595.0,99594.0,1.47250743]
[1746711339847,0.00213708,99595.0,99594.0,1.87250743]
[1746711340485,0.00213708,99595.0,99594.0,1.87150743]
[1746711340689,0.00213708,99595.0,99594.0,1.97217435]
[1746711340835,0.00213708,99595.0,99594.0,1.97517435]
[1746711341242,0.00213708,99595.0,99594.0,1.85850743]
[1746711341933,0.00213708,99595.0,99594.0,1.84310743]
[1746711342557,0.00213708,99595.0,99594.0,1.94377435]
[1746711342769,0.00213708,99595.0,99594.0,1.97597435]
[1746711343205,0.00213708,99595.0,99594.0,1.63597435]
[1746711343855,0.00213708,99595.0,99594.0,1.65626035]
[1746711344665,0.00213708,99595.0,99594.0,0.76133735]
[1746711345029,0.00213708,99595.0,99594.0,6.82849435]
[1746711345235,0.00213708,99595.0,99594.0,7.16849435]
[1746711345865,0.00213708,99595.0,99594.0,6.19886143]
[1746711346459,0.00213708,99595.0,99594.0,6.33062835]
[1746711346665,0.00213708,99595.0,99594.0,6.19886143]
[1746711347785,0.00213708,99595.0,99594.0,6.21546143]
[1746711349302,0.02028599,99600.0,99594.0,6.33182835]
[1746711349472,4e-05,99602.0,99601.0,0.57220119]
[1746711349675,4e-05,99602.0,99601.0,0.6769992]
[1746711349874,4e-05,99602.0,99601.0,6.7284562]
[1746711350134,4e-05,99602.0,99601.0,7.1127562]
[1746711350561,4e-05,99602.0,99601.0,7.12027253]
[1746711351283,4e-05,99602.0,99601.0,7.01960561]
[1746711351852,4e-05,99602.0,99601.0,6.00515642]
[1746711352002,4e-05,99602.0,99601.0,5.86851342]
[1746711352203,4e-05,99602.0,99601.0,6.06931461]
[1746711352854,4e-05,99602.0,99601.0,6.06749184]
[1746711353059,0.00104,99602.0,99601.0,6.06749184]
[1746711354477,0.00104,99602.0,99601.0,6.20005876]
[1746711355075,0.00104,99602.0,99601.0,6.18365876]
[1746711355472,0.00104,99602.0,99601.0,1.06679276]
[1746711355728,0.00104,99602.0,99601.0,7.13394976]
[1746711355932,0.00104,99602.0,99601.0,7.14974976]
[1746711356252,0.00104,99602.0,99601.0,7.15376876]
[1746711358242,1e-08,99602.0,99601.0,7.15376876]
[1746711358409,0.0151,99659.0,99628.0,0.01003733]
[1746711358755,0.01007411,99660.0,99644.0,0.54071454]
[1746711358961,0.21073618,99651.0,99644.0,0.34]
[1746711359163,0.00245711,99645.0,99644.0,6.84978624]
[1746711360327,0.21926963,99645.0,99644.0,3.20350824]
[1746711360539,0.23576963,99645.0,99644.0,2.21497205]
[1746711360676,0.23476963,99645.0,99644.0,1.37681105]
[1746711360864,0.23476963,99645.0,99644.0,2.27884605]
[1746711361290,0.23576963,99645.0,99644.0,2.27884605]
[1746711361508,0.33643655,99645.0,99644.0,0.00231105]
[1746711361900,0.20074476,99629.0,99622.0,0.21079603]
[1746711362104,0.02533754,99626.0,99623.0,6.06916432]
[1746711362338,0.21605282,99625.0,99624.0,3.538239]
[1746711362579,0.21605282,99625.0,99624.0,3.878239]
[1746711363226,0.21078705,99627.0,99625.0,0.34]
[1746711363403,0.21078757,99627.0,99626.0,5.958582]
[1746711363608,0.21078757,99627.0,99626.0,4.806396]
[1746711364011,0.21078757,99627.0,99626.0,4.388514]
[1746711364235,0.21078757,99627.0,99626.0,4.42837542]
[1746711364530,0.20074476,99629.0,99627.0,0.34]
[1746711364701,0.20074476,99629.0,99627.0,4.898766]
[1746711364891,0.01003572,99644.0,99629.0,0.34]
[1746711365096,0.01003623,99639.0,99634.0,0.01003673]
[1746711365411,0.20072835,99638.0,99636.0,0.34]
[1746711365624,0.01003623,99639.0,99638.0,0.34]
[1746711365831,0.00345711,99645.0,99638.0,6.27887956]
[1746711366037,0.2170213,99641.0,99640.0,0.34]
[1746711366236,0.2170213,99641.0,99640.0,0.34662319]
[1746711366432,0.33378822,99641.0,99640.0,0.34662319]
[1746711367130,0.33378822,99641.0,99640.0,0.00662319]
[1746711367545,0.33378822,99641.0,99626.0,0.04154576]
[1746711367546,0.21674825,99628.0,99626.0,0.04154576]
[1746711367740,0.21594825,99628.0,99627.0,3.580406]
[1746711367973,0.21594825,99628.0,99627.0,3.54753921]
[1746711368167,0.21594825,99628.0,99627.0,3.555744]
[1746711368347,0.23224825,99628.0,99627.0,3.555744]
[1746711368567,0.23224825,99628.0,99627.0,3.54753921]
[1746711368568,0.0163,99628.0,99627.0,3.54753921]
[1746711368773,0.20072835,99638.0,99627.0,3.54753921]
[1746711368774,0.0166,99638.0,99636.0,0.20072944]
[1746711369009,0.21075945,99640.0,99637.0,5.55812172]
[1746711369197,0.20072604,99639.0,99637.0,0.00231706]
[1746711369412,0.20072604,99639.0,99638.0,0.00661715]
[1746711369968,0.33279296,99639.0,99638.0,0.00661715]
[1746711370153,0.33279296,99639.0,99638.0,0.00624722]
[1746711370342,0.33379296,99639.0,99638.0,0.01445148]
[1746711370892,0.33279296,99639.0,99638.0,0.00820426]
[1746711371100,0.33279296,99639.0,99630.0,0.35003713]
[1746711371101,0.2007296,99637.0,99630.0,0.35003713]
[1746711371275,0.01003663,99635.0,99632.0,0.34]
[1746711371516,0.01003643,99637.0,99634.0,0.34]
[1746711371729,0.01003613,99640.0,99636.0,0.34]
[1746711372019,0.01103623,99639.0,99637.0,6.067157]
[1746711372239,0.20072663,99638.0,99637.0,6.07536381]
[1746711372483,0.2117621,99639.0,99638.0,2.354241]
[1746711372719,0.00126877,99650.0,99644.0,0.34]
[1746711373194,0.01003532,99648.0,99644.0,6.22035568]
[1746711373434,0.00126877,99650.0,99644.0,6.42189049]
[1746711373649,0.00126877,99650.0,99644.0,6.08189049]
[1746711374263,0.00126877,99650.0,99644.0,4.31916549]
[1746711374686,0.20416963,99645.0,99644.0,3.91916549]
[1746711374885,0.00345711,99645.0,99644.0,2.66587049]
[1746711375095,0.20416963,99645.0,99644.0,2.66587049]
[1746711375268,0.01885711,99645.0,99644.0,2.66587049]
[1746711375712,0.01885711,99645.0,99644.0,3.00587049]
[1746711375917,0.00345711,99645.0,99644.0,3.00587049]
[1746711377589,0.02005711,99645.0,99644.0,2.68813549]
[1746711377936,0.00345711,99645.0,99644.0,2.68813549]
[1746711378136,0.20416963,99645.0,99644.0,2.68813549]
[1746711378292,0.00345711,99645.0,99644.0,2.68813549]
[1746711378453,0.01945711,99645.0,99644.0,2.68813549]
[1746711378659,0.12012403,99645.0,99644.0,1.19213549]
[1746711378863,0.13672403,99645.0,99644.0,0.78670849]
[1746711379063,0.13672403,99645.0,99644.0,0.69230849]
[1746711379800,0.13672403,99645.0,99644.0,0.49143349]
[1746711380008,0.12012403,99645.0,99644.0,0.48322668]
[1746711380388,0.12012403,99645.0,99644.0,0.14322668]
[1746711380645,0.13522403,99645.0,99644.0,0.15143267]
[1746711381058,0.13522403,99645.0,99644.0,0.49143267]
[1746711381299,0.10412403,99645.0,99644.0,0.49143267]
[1746711381526,0.00345711,99645.0,99644.0,0.35473267]
[1746711381741,0.00345711,99645.0,99644.0,6.42188967]
[1746711385873,0.00424707,99670.0,99669.0,3.58840818]
[1746711386171,0.00524707,99670.0,99669.0,3.379538]
[1746711386477,0.00524707,99670.0,99669.0,3.06042621]
[1746711386632,0.00724707,99670.0,99669.0,3.06862572]
[1746711386999,0.00724707,99670.0,99669.0,2.20921672]
[1746711387222,0.00724707,99670.0,99669.0,2.11271672]
[1746711387439,0.00724707,99670.0,99669.0,2.11917088]
[1746711389413,0.32367617,99670.0,99669.0,2.11917088]
[1746711389618,0.32367617,99670.0,99669.0,0.35684188]
[1746711390443,0.33917617,99670.0,99669.0,0.01684188]
[1746711390634,0.33917617,99670.0,99669.0,0.00819951]
[1746711392322,0.33717617,99670.0,99669.0,0.00819951]
[1746711392452,0.33517617,99670.0,99669.0,0.00819951]
[1746711392858,0.33517617,99670.0,99669.0,2.28673451]
[1746711393063,0.33517617,99670.0,99669.0,2.29540517]
[1746711393405,0.33517617,99670.0,99669.0,1.46547017]
[1746711393607,0.33517617,99670.0,99669.0,0.01067066]
[1746711394109,0.33517617,99670.0,99669.0,0.002]
[1746711394340,0.01003331,99668.0,99661.0,0.01003401]
[1746711394576,0.21070711,99665.0,99662.0,2.276535]
[1746711394806,0.21070711,99665.0,99662.0,0.00865861]
[1746711394807,0.20067627,99663.0,99662.0,0.00865861]
[1746711395013,0.01003331,99668.0,99662.0,0.00865861]
[1746711395014,0.20390982,99670.0,99663.0,2.276535]
[1746711395187,0.10066692,99669.0,99664.0,0.34]
[1746711395396,0.21070163,99667.0,99665.0,2.28472907]
[1746711395601,0.0163,99666.0,99665.0,0.00819407]
[1746711396245,0.11947526,99666.0,99665.0,0.00819407]
[1746711397287,0.13717526,99666.0,99665.0,0.00819407]
[1746711398069,0.12196692,99666.0,99665.0,0.00819407]
[1746711398276,0.12196692,99666.0,99665.0,0.76632107]
[1746711398458,0.12196692,99666.0,99665.0,1.65353405]
[1746711399666,0.10666692,99666.0,99665.0,1.61838905]
[1746711399880,0.006,99666.0,99665.0,3.14738905]
[1746711400087,0.006,99666.0,99665.0,5.09687605]
[1746711400314,0.006,99666.0,99665.0,5.09587205]
[1746711400532,0.006,99666.0,99665.0,4.98742605]
[1746711401050,0.10666692,99666.0,99665.0,2.82939805]
[1746711401272,0.12316692,99666.0,99665.0,0.53793605]
[1746711401508,0.12316692,99666.0,99665.0,0.01860535]
[1746711401734,0.14217541,99666.0,99665.0,0.01041128]
[1746711401960,0.14217541,99666.0,99665.0,0.00214286]
[1746711402886,0.14217541,99666.0,99665.0,0.00834317]
[1746711403171,0.14217541,99666.0,99665.0,0.00820031]
[1746711403809,0.13966692,99666.0,99665.0,0.00820031]
[1746711404457,0.01003441,99657.0,99654.0,0.34]
[1746711404668,0.01003411,99660.0,99656.0,0.34]
[1746711404861,0.21071945,99659.0,99658.0,0.34]
[1746711405031,0.21071945,99659.0,99658.0,0.34820458]
[1746711405232,0.01003391,99662.0,99659.0,0.34]
[1746711405518,0.01003391,99662.0,99660.0,0.00820458]
[1746711405768,0.21071293,99662.0,99661.0,0.34820458]
[1746711405922,0.21071293,99662.0,99661.0,4.97652658]
[1746711406682,0.21071293,99662.0,99661.0,1.66262058]
[1746711406683,0.31137985,99662.0,99661.0,1.66262058]
[1746711407002,0.31137985,99662.0,99661.0,1.02000258]
[1746711407003,0.32787985,99662.0,99661.0,1.02000258]
[1746711407119,0.32787985,99662.0,99661.0,0.82418858]
[1746711407359,0.33187985,99662.0,99661.0,0.82418858]
[1746711407563,0.33187985,99662.0,99661.0,0.00820458]
[1746711407972,0.31537985,99662.0,99661.0,0.00820458]
[1746711412936,0.31537985,99662.0,99661.0,4.55510044]
[1746711412937,0.004,99662.0,99661.0,4.55510044]
[1746711413300,0.004,99662.0,99661.0,4.99487943]
[1746711413522,0.004,99662.0,99661.0,5.19555973]
[1746711414327,0.004,99662.0,99661.0,4.99487943]
[1746711414771,0.004,99662.0,99661.0,5.0019001]
[1746711415519,0.004,99662.0,99661.0,4.99487943]
[1746711415921,0.002,99662.0,99661.0,4.99487943]
[1746711416324,0.001,99662.0,99661.0,4.99487943]
[1746711416721,0.002,99662.0,99661.0,4.99487943]
[1746711417364,0.002,99662.0,99661.0,5.00190013]
[1746711417583,0.003,99662.0,99661.0,5.00190013]
[1746711418319,0.003,99662.0,99661.0,4.99487943]
[1746711418939,0.003,99662.0,99661.0,5.19555973]
[1746711419753,0.003,99662.0,99661.0,5.21105973]
[1746711419983,0.003,99662.0,99661.0,5.22675973]
[1746711420188,0.003,99662.0,99661.0,0.59843573]
[1746711420375,0.003,99662.0,99661.0,6.66559273]
[1746711420723,0.003,99662.0,99661.0,6.48688354]
[1746711420913,0.003,99662.0,99661.0,4.73827954]
[1746711421128,0.20267829,99662.0,99661.0,2.89211024]
[1746711421334,0.002,99662.0,99661.0,2.89211024]
[1746711422144,0.001,99662.0,99661.0,2.89511024]
[1746711422364,0.001,99662.0,99661.0,0.62157524]
[1746711422566,0.001,99662.0,99661.0,2.89811024]
[1746711422979,0.001,99662.0,99661.0,2.89109443]
[1746711424698,0.001,99662.0,99661.0,2.89810456]
[1746711426218,0.001,99662.0,99661.0,2.89109443]
[1746711427339,0.001,99662.0,99661.0,2.89809827]
[1746711428212,0.20167829,99662.0,99661.0,2.62156327]
[1746711428437,0.001,99662.0,99661.0,2.62156327]
[1746711428635,0.001,99662.0,99661.0,2.61455943]
[1746711429210,0.001,99662.0,99661.0,0.37255543]
[1746711429506,0.0166,99662.0,99661.0,0.37255543]
[1746711430107,0.0166,99662.0,99661.0,0.36955543]
[1746711430311,0.13587542,99662.0,99661.0,0.01835085]
[1746711430547,0.13587542,99662.0,99661.0,0.00898499]
[1746711430752,0.01003461,99655.0,99652.0,0.06104049]
[1746711431084,0.33567005,99654.0,99653.0,0.01753579]
[1746711431293,0.33316132,99654.0,99653.0,0.01753579]
[1746711432104,0.33316132,99654.0,99653.0,0.00934169]
[1746711432580,0.0313,99653.0,99652.0,0.06104049]
[1746711432791,0.13447588,99653.0,99652.0,0.06104049]
[1746711432944,0.20071252,99645.0,99643.0,0.00934169]
[1746711433124,0.11887597,99644.0,99643.0,0.00934169]
[1746711433557,0.13547597,99644.0,99643.0,0.00934169]
[1746711433761,0.01003623,99639.0,99636.0,0.01753579]
[1746711433944,0.30139355,99638.0,99637.0,2.616535]
[1746711434143,0.30139355,99638.0,99637.0,0.0081941]
[1746711434144,0.33369355,99638.0,99637.0,0.0081941]
[1746711434522,0.33369355,99638.0,99637.0,0.01572816]
[1746711434728,0.33369355,99638.0,99637.0,0.00753406]
[1746711435113,0.33383054,99638.0,99637.0,0.01687575]
[1746711435315,0.33383054,99638.0,99637.0,0.00934169]
[1746711435708,0.20074274,99630.0,99629.0,0.01753579]
[1746711435863,0.30140966,99630.0,99629.0,0.01753579]
[1746711436064,0.10066692,99630.0,99629.0,0.01753579]
[1746711436898,0.10317618,99630.0,99629.0,0.01953579]
[1746711437075,0.11887618,99630.0,99629.0,0.02259062]
[1746711437276,0.11887618,99630.0,99629.0,0.02264725]
[1746711437483,0.11636692,99630.0,99629.0,0.01434169]
[1746711437680,0.10066692,99630.0,99629.0,0.01434169]
[1746711438109,0.00013699,99638.0,99635.0,0.01003663]
[1746711438289,0.00013699,99638.0,99637.0,0.54072864]
[1746711438488,0.00013699,99638.0,99637.0,6.60797824]
[1746711439004,0.00013699,99638.0,99637.0,6.62551403]
[1746711439210,0.00013699,99638.0,99637.0,6.65711403]
[1746711439388,0.00013699,99638.0,99637.0,6.64131403]
[1746711439594,0.00013699,99638.0,99637.0,4.89690944]
[1746711439794,0.20286362,99638.0,99637.0,2.2168898]
[1746711439996,0.20486362,99638.0,99637.0,1.2762918]
[1746711440203,0.21666362,99638.0,99637.0,0.8367008]
[1746711440406,0.31733054,99638.0,99637.0,0.0175898]
[1746711440635,0.31733054,99638.0,99637.0,0.0195898]
[1746711440851,0.31663054,99638.0,99637.0,0.0101941]
[1746711441246,0.31663054,99638.0,99637.0,0.002]
[1746711441709,0.31663054,99638.0,99637.0,0.004]
[1746711441835,0.33163054,99638.0,99637.0,0.002]
[1746711442036,0.33163054,99638.0,99629.0,0.00934169]
[1746711442037,0.23194274,99630.0,99629.0,0.00934169]
[1746711442235,0.23194274,99630.0,99625.0,0.4203]
[1746711442236,0.0162,99629.0,99628.0,0.00934169]
[1746711442431,0.11686692,99629.0,99628.0,0.00934169]
[1746711442842,0.20074677,99628.0,99627.0,0.00934169]
[1746711443050,0.31761369,99628.0,99627.0,0.00934169]
[1746711443468,0.30141369,99628.0,99627.0,0.00934169]
[1746711444052,0.31761369,99628.0,99627.0,0.00934169]
[1746711444258,0.0162,99627.0,99626.0,0.34934169]
[1746711444459,0.0162,99627.0,99626.0,1.98371269]
[1746711444971,0.01003723,99629.0,99626.0,4.26024769]
[1746711445155,0.01003723,99629.0,99628.0,0.34]
[1746711445360,0.01003663,99635.0,99629.0,0.01003723]
[1746711445559,0.0165,99649.0,99629.0,0.01003723]
[1746711445560,0.10066692,99634.0,99632.0,0.21077424]
[1746711445757,0.10066692,99634.0,99633.0,2.276535]
[1746711446214,0.31143833,99634.0,99632.0,2.276535]
[1746711446438,0.01003683,99633.0,99625.0,0.002]
[1746711446595,0.21077776,99631.0,99627.0,0.34]
[1746711446914,0.01003713,99630.0,99629.0,0.34]
[1746711447754,0.20073922,99632.0,99628.0,0.01003733]
[1746711447959,0.2107773,99632.0,99629.0,0.34]
[1746711448541,0.01003693,99632.0,99629.0,0.34]